bitfinex/quotes_ETHUSD_20241004
["timestamp","ask_amount","ask_price","bid_price","bid_amount"]
[1728073089713,4.11348,2431.1,2430.8,0.7784]
[1728073090808,4.1137,2430.9,2430.6,19.72]
[1728073091112,4.11388,2430.8,2430.6,20.5129]
[1728073091617,8.22725,2431.0,2430.6,20.5129]
[1728073091823,4.11372,2430.9,2430.6,20.5129]
[1728073092025,0.7849,2431.1,2430.6,20.5129]
[1728073092026,4.11394,2430.8,2430.6,20.5129]
[1728073092233,4.11404,2430.7,2430.6,19.72]
[1728073093128,8.22796,2430.8,2430.6,19.72]
[1728073093425,4.11404,2430.7,2430.6,19.72]
[1728073093624,8.22793,2430.8,2430.4,0.7858]
[1728073094002,4.11394,2430.8,2430.4,0.7858]
[1728073094407,4.11394,2430.8,2430.4,4.05029063]
[1728073095596,4.11394,2430.8,2430.4,4.91183498]
[1728073096016,4.11394,2430.8,2430.4,9.02636498]
[1728073098386,4.11394,2430.8,2430.5,0.55]
[1728073098788,4.1137,2430.9,2430.5,0.55]
[1728073098990,4.1137,2430.9,2430.5,5.52591435]
[1728073099432,4.1137,2430.9,2430.5,1.41154435]
[1728073100087,4.11421,2430.6,2430.5,0.86154435]
[1728073100284,4.11451,2430.5,2430.2,0.86154435]
[1728073100484,4.11456,2430.4,2430.1,1.64894435]
[1728073101133,4.11456,2430.4,2430.2,0.86154435]
[1728073101425,4.11438,2430.5,2430.1,1.64894435]
[1728073101593,4.11438,2430.5,2430.2,0.86154435]
[1728073102127,4.11457,2430.4,2430.1,1.64894435]
[1728073104418,4.11438,2430.5,2430.1,1.64894435]
[1728073104419,4.11473,2430.3,2430.1,1.64894435]
[1728073105223,4.11473,2430.3,2430.1,0.7874]
[1728073106728,4.11473,2430.3,2430.1,1.64894435]
[1728073106928,4.11473,2430.3,2430.1,0.7874]
[1728073108531,4.11488,2430.2,2430.0,0.86154435]
[1728073108715,4.11506,2430.1,2429.9,1.61844435]
[1728073109245,4.11522,2430.0,2429.9,2.16844435]
[1728073109410,4.11522,2430.0,2429.9,1.3069]
[1728073109613,4.11522,2430.0,2429.9,0.55]
[1728073110105,4.11506,2430.1,2429.9,0.55]
[1728073113838,4.11506,2430.1,2429.8,1.41154435]
[1728073114357,4.1149,2430.2,2430.0,0.7623]
[1728073116936,4.11474,2430.3,2430.0,0.7623]
[1728073119135,4.1149,2430.2,2430.0,0.7623]
[1728073120256,4.1149,2430.2,2429.8,4.26798685]
[1728073121959,4.11505,2430.1,2429.8,1.3473]
[1728073122928,0.789,2430.2,2429.8,1.3473]
[1728073123226,4.90391,2430.2,2429.8,1.3473]
[1728073126774,4.90391,2430.2,2429.8,5.46283]
[1728073126926,4.11491,2430.2,2429.8,5.46283]
[1728073127128,4.11491,2430.2,2429.9,0.73033076]
[1728073128173,8.22991,2430.2,2429.8,1.3473]
[1728073128467,8.22989,2430.2,2429.8,1.3473]
[1728073128641,4.11491,2430.2,2429.8,1.3473]
[1728073129423,4.11491,2430.2,2429.8,5.46284]
[1728073129627,4.11491,2430.2,2429.9,1.2280562]
[1728073133868,8.22996,2430.2,2429.9,1.2280562]
[1728073134068,4.11507,2430.1,2429.8,1.3473]
[1728073134275,4.11507,2430.1,2429.9,0.55135279]
[1728073134475,4.11507,2430.1,2429.8,1.3473]
[1728073134640,4.11507,2430.1,2429.9,0.55135177]
[1728073134841,4.11507,2430.1,2429.8,1.3473]
[1728073135043,4.11507,2430.1,2429.9,0.55133407]
[1728073135239,4.11507,2430.1,2429.8,4.67662385]
[1728073135467,4.11507,2430.1,2429.9,0.55138795]
[1728073135667,4.11507,2430.1,2429.8,4.67662385]
[1728073136041,4.11493,2430.2,2429.9,0.55138292]
[1728073136353,4.11493,2430.2,2429.9,3.28581686]
[1728073137684,4.11493,2430.2,2429.9,1.52997144]
[1728073139378,4.11493,2430.2,2429.8,4.67662385]
[1728073139379,4.11507,2430.1,2429.8,4.67662385]
[1728073139544,4.11507,2430.1,2429.9,0.55157459]
[1728073139744,4.11507,2430.1,2429.8,4.67662385]
[1728073139975,4.11507,2430.1,2429.9,0.55157456]
[1728073140156,4.11539,2429.9,2429.8,0.7973]
[1728073140357,4.11556,2429.8,2429.7,0.0846322]
[1728073140949,4.91966,2429.8,2429.7,0.0846322]
[1728073141192,7.91966,2429.8,2429.7,0.0846322]
[1728073141477,11.50727166,2429.8,2429.7,0.0846322]
[1728073144982,9.75142624,2429.8,2429.7,0.0846322]
[1728073145200,7.91966,2429.8,2429.7,0.0846322]
[1728073149104,9.67550542,2429.8,2429.7,0.0846322]
[1728073149473,7.91966,2429.8,2429.7,0.0846322]
[1728073149678,11.73501959,2429.8,2429.7,0.0846322]
[1728073151610,11.8066779,2429.8,2429.7,0.0846322]
[1728073151827,13.39888469,2429.8,2429.7,0.0846322]
[1728073154905,6.5835251,2429.8,2429.7,0.0846322]
[1728073155111,4.99131831,2429.8,2429.7,0.0846322]
[1728073155277,4.11556,2429.8,2429.7,0.0846322]
[1728073156405,7.11556,2429.8,2429.7,0.0846322]
[1728073156612,0.07165399,2430.1,2429.7,0.0846322]
[1728073156613,4.11526,2430.0,2429.7,0.0846322]
[1728073156914,4.11526,2430.0,2429.7,0.55139138]
[1728073157694,4.1154,2429.9,2429.7,0.55139138]
[1728073158333,4.1154,2429.9,2429.7,0.0846322]
[1728073158907,4.11556,2429.8,2429.7,0.0846322]
[1728073159313,7.11556,2429.8,2429.7,0.0846322]
[1728073161895,4.11556,2429.8,2429.7,0.0846322]
[1728073163173,4.1153,2430.0,2429.7,0.8974322]
[1728073163553,4.1153,2430.0,2429.7,1.39877142]
[1728073163766,3.0,2430.0,2429.7,1.39877142]
[1728073164094,4.11516,2430.1,2429.7,1.39877142]
[1728073164387,4.11541,2429.9,2429.7,1.39877142]
[1728073167577,8.2309,2429.9,2429.7,1.39877142]
[1728073167758,4.11541,2429.9,2429.7,1.39877142]
[1728073167962,8.23091,2429.9,2429.7,1.39877142]
[1728073168607,4.11541,2429.9,2429.7,1.39877142]
[1728073169200,8.23093,2429.9,2429.7,1.39877142]
[1728073169407,8.23092,2429.9,2429.7,1.39877142]
[1728073170601,4.11556,2429.8,2429.7,1.39877142]
[1728073170768,4.11556,2429.8,2429.7,0.8974322]
[1728073172271,4.11556,2429.8,2429.7,0.0846322]
[1728073198439,4.90506,2429.8,2429.7,0.0846322]
[1728073199020,4.11556,2429.8,2429.7,0.0846322]
[1728073204107,4.11556,2429.8,2429.7,0.8782322]
[1728073204920,4.11541,2429.9,2429.7,0.8782322]
[1728073205118,4.11541,2429.9,2429.7,2.63790271]
[1728073205470,4.11465,2430.4,2430.0,0.55]
[1728073205612,4.11465,2430.4,2430.1,3.81037026]
[1728073205813,0.7659,2430.6,2430.1,3.81037026]
[1728073206020,0.7659,2430.6,2430.0,1.41491621]
[1728073206021,4.11475,2430.3,2430.0,0.55]
[1728073206321,4.11539,2429.9,2429.7,28.71964841]
[1728073206626,4.11539,2429.9,2429.7,0.8347322]
[1728073207813,4.11522,2430.0,2429.7,0.8347322]
[1728073208952,8.2302,2430.1,2429.7,0.8347322]
[1728073209152,4.11522,2430.0,2429.7,0.8347322]
[1728073209959,4.11505,2430.1,2429.7,0.8347322]
[1728073210251,4.11548,2429.9,2429.7,0.8347322]
[1728073211442,4.1153,2430.0,2429.7,0.8347322]
[1728073213365,4.11547,2429.9,2429.7,0.8347322]
[1728073215353,4.11524,2430.0,2429.7,0.8347322]
[1728073216168,4.11556,2429.8,2429.7,0.0846322]
[1728073221479,7.87406,2429.8,2429.7,0.0846322]
[1728073225380,4.11556,2429.8,2429.7,0.0846322]
[1728073225977,4.11552,2429.9,2429.7,0.8721322]
[1728073226178,4.11552,2429.9,2429.7,1.34038245]
[1728073227878,4.11549,2429.9,2429.7,1.34038245]
[1728073228355,4.11556,2429.8,2429.7,1.34038245]
[1728073228557,4.11549,2429.9,2429.7,1.34038245]
[1728073228999,4.11556,2429.8,2429.7,0.0846322]
[1728073229799,7.89496,2429.8,2429.7,0.0846322]
[1728073231898,7.94566772,2429.8,2429.7,0.0846322]
[1728073235806,7.94566772,2429.8,2428.6,19.72]
[1728073235807,4.11742,2428.7,2428.6,19.72]
[1728073236006,4.11793,2428.4,2428.3,0.8158]
[1728073236304,4.11831,2428.2,2428.0,0.8158]
[1728073236611,0.04835405,2428.1,2428.0,0.8158]
[1728073237463,8.236,2428.4,2428.0,0.8158]
[1728073237885,0.04872824,2428.3,2428.0,0.8158]
[1728073239279,0.04872824,2428.3,2427.8,3.81037026]
[1728073239280,4.11869,2428.0,2427.8,0.7985]
[1728073239606,0.04817465,2427.9,2427.8,0.7985]
[1728073239986,4.11886,2427.9,2427.5,0.8324]
[1728073240309,4.11864,2428.0,2427.5,4.95178]
[1728073240310,0.04818201,2427.8,2427.5,4.95178]
[1728073240702,8.23734,2428.0,2427.5,4.95178]
[1728073240911,0.04814329,2427.7,2427.5,4.95178]
[1728073241208,0.04821252,2427.6,2427.5,4.95178]
[1728073241419,0.04821252,2427.6,2427.5,6.80212421]
[1728073241571,4.11864,2428.0,2427.6,0.55]
[1728073241773,0.04843208,2427.9,2427.6,0.55]
[1728073242778,4.11897,2427.8,2427.5,0.8324]
[1728073242981,0.04822862,2427.7,2427.5,0.8324]
[1728073243207,4.119,2427.8,2427.5,0.8324]
[1728073243518,0.04815543,2427.6,2427.5,1.3824]
[1728073243812,0.04815543,2427.6,2427.5,10.25555447]
[1728073244019,8.23716,2428.1,2427.5,10.25555447]
[1728073244418,0.04826195,2428.0,2427.5,10.25555447]
[1728073244584,4.16690195,2428.0,2427.5,10.25555447]
[1728073244982,4.11891,2427.9,2427.5,6.13609447]
[1728073245188,4.16691039,2427.8,2427.5,2.32572421]
[1728073245388,4.16691039,2427.8,2427.5,1.3824]
[1728073245978,0.04787039,2427.8,2427.5,1.3824]
[1728073246425,4.16683039,2427.8,2427.3,0.1209518]
[1728073246580,4.11916,2427.7,2427.3,4.2407418]
[1728073246789,0.04772196,2427.6,2427.3,4.1907418]
[1728073248487,4.11916,2427.7,2427.3,4.1907418]
[1728073248683,4.942954,2427.7,2427.3,0.0709518]
[1728073248883,0.04630458,2427.6,2427.3,0.0709518]
[1728073249124,0.04630458,2427.6,2427.5,0.8288]
[1728073249326,0.04630458,2427.6,2427.5,9.30863026]
[1728073249540,4.1187,2428.0,2427.5,9.30863026]
[1728073249904,0.04474626,2427.9,2427.5,9.30863026]
[1728073250108,0.04474626,2427.9,2427.5,10.65854247]
[1728073250410,3.8142,2428.4,2427.8,0.55]
[1728073250721,3.0,2428.3,2427.8,0.55]
[1728073250922,4.11836,2428.2,2427.8,4.66893]
[1728073251141,4.11836,2428.2,2427.8,7.98365203]
[1728073251345,0.04481391,2428.1,2427.8,7.98365203]
[1728073252106,0.04481391,2428.1,2427.8,3.86472203]
[1728073252534,4.11836,2428.2,2427.8,3.86472203]
[1728073252734,0.04152351,2428.0,2427.8,3.86472203]
[1728073252945,4.11836,2428.2,2427.9,1.67419523]
[1728073253535,4.11806,2428.4,2428.0,0.757]
[1728073253736,4.11773,2428.6,2428.3,3.81037026]
[1728073253911,4.11736,2428.8,2428.4,1.54986403]
[1728073255243,4.11703,2429.0,2428.7,3.81037026]
[1728073255456,4.11709,2428.9,2428.8,0.7946]
[1728073255740,4.1169,2429.1,2428.8,0.7946]
[1728073256147,4.1169,2429.1,2428.8,0.87693495]
[1728073256345,4.1169,2429.1,2428.8,0.7946]
[1728073256920,4.11696,2429.0,2428.8,0.7946]
[1728073259421,8.23378,2429.1,2428.8,0.7946]
[1728073259621,4.11693,2429.0,2428.8,0.84847988]
[1728073260058,4.11702,2429.0,2428.8,0.84847988]
[1728073260360,4.11702,2429.0,2428.8,0.7946]
[1728073260517,4.11688,2429.1,2428.8,0.7946]
[1728073260917,4.11688,2429.1,2428.9,0.55]
[1728073263861,4.11666,2429.2,2428.9,0.55]
[1728073264369,4.11675,2429.1,2428.9,0.55]
[1728073264927,4.11675,2429.1,2428.6,0.55]
[1728073265171,4.11675,2429.1,2428.6,4.66745]
[1728073265378,3.78,2429.6,2428.9,0.8]
[1728073265670,4.11633,2429.4,2429.0,0.55]
[1728073266057,0.0427055,2429.3,2429.0,0.55]
[1728073266375,0.0427055,2429.3,2429.0,1.47774403]
[1728073268433,4.1591655,2429.3,2429.0,1.47774403]
[1728073268634,4.11646,2429.3,2429.0,1.47774403]
[1728073268871,0.04125498,2429.2,2429.0,1.47774403]
[1728073269231,4.11646,2429.3,2429.0,1.47774403]
[1728073269441,0.04118186,2429.1,2429.0,1.47774403]
[1728073269795,4.11646,2429.3,2429.0,1.47774403]
[1728073269940,4.11633,2429.4,2429.0,1.47774403]
[1728073270642,0.04147938,2429.3,2429.0,1.47774403]
[1728073271278,0.04147938,2429.3,2429.0,5.59463403]
[1728073271454,0.04147938,2429.3,2429.1,2.22499943]
[1728073271840,0.04147938,2429.3,2429.1,6.03536969]
[1728073272043,4.11608,2429.5,2429.1,6.03536969]
[1728073272357,0.04144307,2429.2,2429.1,6.03536969]
[1728073272688,4.11608,2429.5,2429.1,6.03536969]
[1728073272984,0.04145329,2429.2,2429.1,6.58536969]
[1728073273197,4.11608,2429.5,2429.2,0.55]
[1728073273357,4.76138864,2429.6,2429.2,0.55]
[1728073273547,4.1578395,2429.4,2429.2,0.55]
[1728073273747,4.11624,2429.4,2429.2,0.55]
[1728073273947,0.0415264,2429.3,2429.2,0.55]
[1728073274772,0.0415264,2429.3,2429.2,0.60802044]
[1728073275303,0.0415264,2429.3,2429.2,5.75018291]
[1728073275446,0.0415264,2429.3,2429.2,6.51088291]
[1728073275646,4.11531,2430.0,2429.6,1.3107]
[1728073275873,8.87600126,2430.0,2429.6,1.31876983]
[1728073276079,0.04148428,2429.9,2429.6,1.31876983]
[1728073276317,4.11557,2429.8,2429.6,1.34300685]
[1728073276584,4.11557,2429.8,2429.6,1.2607]
[1728073276884,0.0414807,2429.7,2429.6,1.2607]
[1728073277090,4.11557,2429.8,2429.6,1.2607]
[1728073277257,0.0414807,2429.7,2429.6,1.2607]
[1728073277458,4.11557,2429.8,2429.6,1.2607]
[1728073277668,0.0414807,2429.7,2429.6,1.2607]
[1728073277859,4.11557,2429.8,2429.6,1.2607]
[1728073278048,0.0414807,2429.7,2429.6,1.2607]
[1728073278385,4.11557,2429.8,2429.6,1.2607]
[1728073278561,0.0414807,2429.7,2429.6,1.2607]
[1728073278755,8.23126,2429.8,2429.6,1.2607]
[1728073279065,0.0414807,2429.7,2429.4,1.3417]
[1728073279385,0.0414807,2429.7,2429.4,4.18322312]
[1728073279598,0.0414076,2429.6,2429.4,4.18322312]
[1728073279896,8.23125,2429.8,2429.4,4.18322312]
[1728073280104,0.04137726,2429.5,2429.4,1.3417]
[1728073280266,4.86731,2429.7,2429.3,0.55]
[1728073280462,0.04151989,2429.5,2429.3,0.55]
[1728073280687,8.98316,2429.7,2429.3,0.55]
[1728073281004,0.04144679,2429.4,2429.3,0.55]
[1728073281208,4.86731,2429.7,2429.3,0.55]
[1728073281358,0.04144679,2429.4,2429.3,0.55]
[1728073281562,0.04141826,2429.4,2429.3,0.55]
[1728073282175,4.86731,2429.7,2429.3,0.55]
[1728073282367,4.86731,2429.7,2429.3,4.66637]
[1728073282568,0.04156446,2429.6,2429.3,4.66637]
[1728073283159,0.04156446,2429.6,2429.4,4.11624]
[1728073283363,0.04156446,2429.6,2429.4,4.11614]
[1728073283565,0.04156446,2429.6,2429.4,4.11613]
[1728073283788,4.11552,2429.9,2429.4,4.11613]
[1728073284199,0.0416536,2429.8,2429.4,4.11613]
[1728073284767,4.91272,2429.6,2429.3,0.55]
[1728073285013,0.04143431,2429.5,2429.3,0.55]
[1728073287790,0.04143431,2429.5,2429.3,4.6664]
[1728073290089,0.04143431,2429.5,2429.3,0.55]
[1728073293484,0.04143431,2429.5,2429.3,4.66628]
[1728073293889,4.11574,2429.7,2429.3,4.66628]
[1728073294069,0.04124104,2429.4,2429.3,4.66628]
[1728073294270,4.11574,2429.7,2429.3,4.66628]
[1728073294521,0.04124104,2429.4,2429.3,4.66628]
[1728073294723,5.014193,2429.7,2429.3,4.66628]
[1728073294928,0.04124104,2429.4,2429.3,4.66628]
[1728073295218,5.014193,2429.7,2429.3,4.66628]
[1728073295810,0.04138726,2429.6,2429.3,4.66628]
[1728073299706,0.04138726,2429.6,2429.4,4.11612]
[1728073299893,4.86877,2429.8,2429.4,4.11612]
[1728073300094,0.03986048,2429.5,2429.4,4.11612]
[1728073300299,4.86877,2429.8,2429.4,4.11612]
[1728073300495,0.03997457,2429.5,2429.4,4.11612]
[1728073300719,4.86877,2429.8,2429.4,4.11612]
[1728073300938,0.03997457,2429.5,2429.4,4.66612]
[1728073301091,0.7532,2429.8,2429.4,5.85474904]
[1728073301291,0.04003162,2429.5,2429.4,4.66612]
[1728073301636,0.7532,2429.8,2429.4,4.66612]
[1728073302012,0.04017781,2429.7,2429.4,4.66612]
[1728073302410,7.11542,2429.9,2429.4,4.66612]
[1728073302753,4.11559,2429.8,2429.4,4.66612]
[1728073302929,4.1558409,2429.8,2429.4,4.66612]
[1728073304339,4.1558409,2429.8,2429.4,0.55]
[1728073304533,4.11578,2429.7,2429.3,0.55]
[1728073304835,4.90932894,2429.7,2429.3,4.66636]
[1728073305025,0.04034894,2429.7,2429.6,2.3100904]
[1728073305425,4.86861,2429.9,2429.6,2.3100904]
[1728073305606,0.038852,2429.7,2429.6,2.3100904]
[1728073305811,4.86861,2429.9,2429.6,2.3100904]
[1728073306006,0.038852,2429.7,2429.6,2.3100904]
[1728073306232,0.038852,2429.7,2429.6,0.55]
[1728073307034,4.86861,2429.9,2429.6,0.55]
[1728073307238,4.11541,2429.9,2429.6,0.55]
[1728073307436,0.03894763,2429.8,2429.6,0.55]
[1728073314024,4.15451763,2429.8,2429.6,0.55]
[1728073315050,4.93824,2429.7,2429.4,0.55]
[1728073315566,0.03862477,2429.6,2429.4,0.55]
[1728073321149,0.8225,2429.7,2429.4,0.55]
[1728073321323,0.03715565,2429.5,2429.4,0.55]
[1728073321537,0.8225,2429.7,2429.4,0.55]
[1728073321724,0.03715565,2429.5,2429.4,0.55]
[1728073322041,0.8225,2429.7,2429.4,0.55]
[1728073322573,0.03722874,2429.6,2429.3,1.64741621]
[1728073322867,0.03722874,2429.6,2429.3,5.76382621]
[1728073323275,0.03722874,2429.6,2429.3,4.89891]
[1728073323437,0.03722874,2429.6,2429.4,1.7600904]
[1728073323635,0.03722874,2429.6,2429.5,5.45057]
[1728073323959,0.64533126,2430.0,2429.6,4.11586]
[1728073324268,0.64533126,2430.0,2429.8,1.7600904]
[1728073324783,4.76057126,2430.0,2429.8,1.7600904]
[1728073326492,4.11539,2429.9,2429.8,1.7600904]
[1728073327950,4.11539,2429.9,2429.6,1.7600904]
[1728073331986,4.11558,2429.8,2429.6,1.7600904]
[1728073332212,4.11539,2429.9,2429.7,0.55]
[1728073334621,8.23088,2429.9,2429.7,0.55]
[1728073337095,4.11539,2429.9,2429.7,0.55]
[1728073345743,4.76058126,2430.0,2429.7,0.55]
[1728073346052,0.64533126,2430.0,2429.7,0.55]
[1728073346212,4.76059126,2430.0,2429.7,0.55]
[1728073355959,0.64533126,2430.0,2429.8,1.7600904]
[1728073356550,4.76057126,2430.0,2429.8,1.7600904]
[1728073357023,4.76057126,2430.0,2429.6,2.3100904]
[1728073359368,0.64533126,2430.0,2429.6,6.4259504]
[1728073363261,0.64533126,2430.0,2429.7,4.11572]
[1728073363574,4.76057126,2430.0,2429.6,2.3100904]
[1728073363941,0.47236532,2430.0,2429.9,10.85236897]
[1728073364141,0.7554,2431.1,2430.7,5.44673]
[1728073364455,8.39088662,2431.2,2431.0,1.7600904]
[1728073364456,4.27759662,2431.2,2431.0,1.7600904]
[1728073365142,8.39083662,2431.2,2431.0,1.7600904]
[1728073366364,8.39080662,2431.2,2431.0,1.7600904]
[1728073367230,4.11336,2431.1,2431.0,1.7600904]
[1728073370880,4.11336,2431.1,2430.7,5.44679]
[1728073370881,4.11336,2431.1,2430.8,1.7600904]
[1728073371468,4.11336,2431.1,2430.8,2.89218544]
[1728073379952,4.1132,2431.2,2430.8,2.89218544]
[1728073382096,4.1132,2431.2,2431.0,1.7600904]
[1728073383160,4.8738,2431.3,2431.0,1.7600904]
[1728073383716,3.0,2431.4,2431.2,1.7600904]
[1728073383853,4.11287,2431.4,2431.2,1.7600904]
[1728073384580,0.64497145,2431.6,2431.2,2.01185944]
[1728073384901,0.64497145,2431.6,2431.4,1.7600904]
[1728073385084,8.22487,2431.7,2431.4,1.7600904]
[1728073385290,4.1122,2431.8,2431.6,1.7600904]
[1728073386259,8.22448,2431.8,2431.6,1.7600904]
[1728073388167,4.11234,2431.7,2431.6,1.7600904]
[1728073389898,4.11255,2431.6,2431.4,2.3100904]
[1728073392407,4.11234,2431.7,2431.4,2.3100904]
[1728073392962,8.22482,2431.7,2431.4,2.3100904]
[1728073393164,4.11252,2431.6,2431.4,2.3100904]
[1728073394902,4.11234,2431.7,2431.4,2.3100904]
[1728073395106,4.11234,2431.7,2431.4,3.05622334]
[1728073397313,4.11252,2431.6,2431.4,3.05622334]
[1728073400206,4.11252,2431.6,2431.4,2.3100904]
[1728073401139,4.75714097,2431.7,2431.0,1.7600904]
[1728073401140,4.11297,2431.4,2431.0,1.7600904]
[1728073402053,4.11297,2431.4,2431.0,5.8735804]
[1728073402261,4.11327,2431.2,2431.0,1.7600904]
[1728073404853,4.1131,2431.3,2431.0,1.7600904]
[1728073406453,4.11286,2431.4,2431.2,1.7600904]
[1728073406653,4.93103,2431.5,2431.2,1.7600904]
[1728073406811,4.11252,2431.6,2431.3,0.819]
[1728073407013,5.52334097,2431.7,2431.4,1.7600904]
[1728073407680,1.41090097,2431.7,2431.4,1.7600904]
[1728073407838,4.41090097,2431.7,2431.4,2.84061244]
[1728073408175,8.52327097,2431.7,2431.4,2.84061244]
[1728073408545,5.52327097,2431.7,2431.4,2.84061244]
[1728073410737,4.11256,2431.6,2431.4,2.84061244]
[1728073411863,4.11256,2431.6,2431.4,1.7600904]
[1728073412480,4.11268,2431.5,2431.3,0.55]
[1728073412977,4.93635,2431.4,2431.0,0.7842]
[1728073413278,4.11303,2431.3,2431.1,1.039788]
[1728073415707,0.64480097,2431.7,2431.1,1.039788]
[1728073415708,4.1126,2431.6,2431.2,1.7600904]
[1728073416191,1.41670097,2431.7,2431.4,1.7600904]
[1728073416338,0.64480097,2431.7,2431.6,1.7600904]
[1728073416543,0.64480097,2431.7,2431.6,7.2343004]
[1728073423152,0.64480097,2431.7,2431.6,3.1217904]
[1728073423358,0.64480097,2431.7,2431.6,2.3100904]
[1728073423669,0.64480097,2431.7,2431.6,5.03367034]
[1728073425469,0.64480097,2431.7,2431.6,3.27357994]
[1728073425674,0.64480097,2431.7,2431.6,5.03367034]
[1728073426199,0.64480097,2431.7,2431.6,4.48367034]
[1728073427150,0.64480097,2431.7,2431.6,1.7600904]
[1728073427353,0.64480097,2431.7,2431.6,2.3100904]
[1728073427598,4.75714097,2431.7,2431.5,19.72]
[1728073427888,5.51314097,2431.7,2431.5,19.72]
[1728073428469,5.51314097,2431.7,2431.4,1.7600904]
[1728073432557,1.40080097,2431.7,2431.4,1.7600904]
[1728073433588,5.51324097,2431.7,2431.4,1.7600904]
[1728073442135,4.11254,2431.6,2431.4,1.7600904]
[1728073443114,4.11254,2431.6,2431.2,4.11309]
[1728073443115,4.11254,2431.6,2431.3,0.55]
[1728073443315,4.11254,2431.6,2431.4,1.7600904]
[1728073443953,5.51317097,2431.7,2431.4,1.7600904]
[1728073446475,5.51317097,2431.7,2431.1,19.72]
[1728073446476,0.7593,2431.6,2431.1,19.72]
[1728073446766,4.87249,2431.2,2431.1,19.72]
[1728073452186,4.1137,2430.9,2430.8,19.72]
[1728073452466,4.11387,2430.8,2430.7,19.72]
[1728073453550,4.11387,2430.8,2430.6,19.72]
[1728073453850,4.11404,2430.7,2430.6,19.72]
[1728073457966,4.75907603,2430.7,2430.6,19.72]
[1728073458160,4.75907603,2430.7,2430.4,1.7600904]
[1728073459177,0.64503603,2430.7,2430.4,1.7600904]
[1728073459471,4.11421,2430.6,2430.4,1.7600904]
[1728073460377,4.75907603,2430.7,2430.4,1.7600904]
[1728073461181,4.75907603,2430.7,2430.1,0.55]
[1728073461182,4.11438,2430.5,2430.1,0.55]
[1728073461379,4.11438,2430.5,2430.1,2.3100904]
[1728073462282,4.11438,2430.5,2430.3,1.7600904]
[1728073466542,4.11454,2430.4,2430.3,1.7600904]
[1728073467970,4.11454,2430.4,2430.1,2.3100904]
[1728073468163,4.11454,2430.4,2430.1,3.44219044]
[1728073469583,4.11454,2430.4,2430.1,2.3100904]
[1728073472254,4.8897,2430.3,2429.8,24.63005]
[1728073472592,4.1149,2430.2,2430.0,0.55]
[1728073473597,4.1149,2430.2,2429.8,0.55]
[1728073473787,4.11516,2430.1,2429.8,2.69573704]
[1728073474003,4.88899,2429.9,2429.7,1.7600904]
[1728073474144,0.7736,2429.9,2429.6,0.8117]
[1728073474350,4.88901,2429.9,2429.6,0.8117]
[1728073474649,4.11556,2429.8,2429.6,0.8117]
[1728073474874,4.88901,2429.9,2429.6,0.8117]
[1728073475290,4.88901,2429.9,2429.6,0.55]
[1728073476805,4.88901,2429.9,2429.7,1.7600904]
[1728073485823,0.7736,2429.9,2429.4,0.7749]
[1728073486177,4.11613,2429.5,2429.2,2.5197904]
[1728073486328,4.11631,2429.4,2429.2,1.7600904]
[1728073486693,8.2327,2429.4,2429.2,1.7600904]
[1728073486896,4.11631,2429.4,2429.2,1.7600904]
[1728073489352,8.23265,2429.4,2429.2,1.7600904]
[1728073489509,4.11631,2429.4,2429.2,1.7600904]
[1728073501207,8.23266,2429.4,2429.2,1.7600904]
[1728073501329,4.11631,2429.4,2429.2,1.7600904]
[1728073503683,4.11599,2429.6,2429.2,2.5720904]
[1728073504459,4.11577,2429.7,2429.2,2.5720904]
[1728073504668,4.11617,2429.5,2429.2,2.5720904]
[1728073504872,8.23236,2429.5,2429.2,2.5720904]
[1728073505693,4.11617,2429.5,2429.2,2.5720904]
[1728073505845,8.23235,2429.5,2429.2,2.5720904]
[1728073506205,8.23233,2429.5,2429.2,2.5720904]
[1728073506550,8.23235,2429.5,2429.2,2.5720904]
[1728073506752,4.11616,2429.5,2429.2,2.5720904]
[1728073506952,8.23235,2429.5,2429.2,2.5720904]
[1728073507187,4.11616,2429.5,2429.2,2.5720904]
[1728073507755,4.11615,2429.5,2429.2,2.5720904]
[1728073507956,8.23232,2429.5,2429.2,2.5720904]
[1728073508189,4.11624,2429.4,2429.2,2.5720904]
[1728073508486,4.11615,2429.5,2429.2,2.5720904]
[1728073508696,8.23235,2429.5,2429.2,2.5720904]
[1728073509133,4.11626,2429.4,2429.2,2.5720904]
[1728073510889,4.11626,2429.4,2429.2,0.812]
[1728073510890,4.11641,2429.3,2429.2,0.812]
[1728073511637,4.11641,2429.3,2429.1,0.55]
[1728073514749,8.23266,2429.4,2429.1,0.55]
[1728073515803,4.11641,2429.3,2429.1,0.55]
[1728073518242,4.76178822,2429.3,2429.1,0.55]
[1728073521960,0.64537822,2429.3,2429.1,0.55]
[1728073527866,0.64537822,2429.3,2429.1,1.41092276]
[1728073529479,4.76187822,2429.3,2429.1,1.41092276]
[1728073530640,0.64537822,2429.3,2429.1,1.41092276]
[1728073531307,0.64537822,2429.3,2429.2,0.86092276]
[1728073540556,6.49919804,2429.3,2429.2,0.86092276]
[1728073540762,4.11692,2429.0,2428.8,0.86092276]
[1728073541293,4.11692,2429.0,2428.7,0.86092276]
[1728073542099,0.64537822,2429.3,2429.1,4.11667]
[1728073542273,0.64537822,2429.3,2429.2,2.1717574]
[1728073542456,0.64537822,2429.3,2429.2,1.7600904]
[1728073544817,8.23224,2429.5,2429.2,1.7600904]
[1728073545572,1.44777329,2429.8,2429.4,1.7600904]
[1728073545772,4.11566,2429.8,2429.6,1.7600904]
[1728073549808,4.1154,2429.9,2429.6,1.7600904]
[1728073550014,0.64532675,2430.1,2429.8,1.7600904]
[1728073550736,4.11524,2430.0,2429.8,1.7600904]
[1728073551528,8.23058,2430.0,2429.8,1.7600904]
[1728073551689,4.11524,2430.0,2429.8,1.7600904]
[1728073552129,8.23059,2430.0,2429.8,1.7600904]
[1728073552423,4.11524,2430.0,2429.8,1.7600904]
[1728073552926,8.23062,2430.0,2429.8,1.7600904]
[1728073553123,4.76038675,2430.1,2429.8,1.7600904]
[1728073553290,4.76038675,2430.1,2429.9,0.25619904]
[1728073553489,4.76038675,2430.1,2429.8,1.7600904]